fUST/lending_fUST_20250515
["ID","MTS","AMOUNT","RATE_DAILY","PERIOD"]
[361142564,1747303835304,-450.0,0.00016892,2]
[361142565,1747303835314,-450.0,0.00016892,2]
[361142566,1747303835323,-450.0,0.00016892,2]
[361142567,1747303835333,-450.0,0.00016892,2]
[361142568,1747303835343,-450.0,0.00016892,2]
[361142569,1747303835352,-450.0,0.00016892,2]
[361142570,1747303835363,-450.0,0.00016892,2]
[361142571,1747303835374,-450.0,0.00016892,2]
[361142572,1747303835384,-450.0,0.00016892,2]
[361142573,1747303835395,-450.0,0.00016892,2]
[361142574,1747303835404,-450.0,0.00016892,2]
[361142575,1747303835414,-450.0,0.00016892,2]
[361142576,1747303835424,-450.0,0.00016892,2]
[361142577,1747303835435,-478.47,0.00016892,2]
[361142578,1747303835445,-450.0,0.00016892,2]
[361142579,1747303835454,-450.0,0.00016892,2]
[361142580,1747303835464,-450.0,0.00016892,2]
[361142581,1747303835474,-450.0,0.00016892,2]
[361142582,1747303835484,-450.0,0.00016892,2]
[361142583,1747303835494,-490.2198061,0.00016892,2]
[361142584,1747303835503,-450.0,0.00016892,2]
[361142585,1747303835512,-500.0,0.00016892,2]
[361142586,1747303835522,-450.0,0.00016892,2]
[361142587,1747303835532,-450.0,0.00016892,2]
[361142588,1747303835541,-450.0,0.00016892,2]
[361142589,1747303835550,-450.0,0.00016892,2]
[361142590,1747303835560,-450.0,0.00016892,2]
[361142591,1747303835569,-450.0,0.00016892,2]
[361142592,1747303835578,-450.0,0.00016892,2]
[361142593,1747303835588,-450.0,0.00016892,2]
[361142594,1747303835597,-450.0,0.00016892,2]
[361142595,1747303835606,-450.0,0.00016892,2]
[361142596,1747303835616,-438.91993685,0.00016892,2]
[361142597,1747303835625,-450.0,0.00016892,2]
[361142598,1747303835635,-450.0,0.00016892,2]
[361142599,1747303835644,-400.0,0.00016892,2]
[361142600,1747303835654,-450.0,0.00016892,2]
[361142601,1747303835663,-450.0,0.00016892,2]
[361142602,1747303835673,-450.0,0.00016892,2]
[361142603,1747303835683,-450.0,0.00016892,2]
[361142604,1747303835692,-450.0,0.00016892,2]
[361142605,1747303835701,-450.0,0.00016892,2]
[361142606,1747303835710,-450.0,0.00016892,2]
[361142607,1747303835723,-450.0,0.00016892,2]
[361142608,1747303835733,-450.0,0.00016892,2]
[361142609,1747303835742,-450.0,0.00016892,2]
[361142610,1747303835752,-450.0,0.00016892,2]
[361142611,1747303835763,-450.0,0.00016892,2]
[361142612,1747303835773,-543.09,0.00016892,2]
[361142613,1747303835782,-501.07368235,0.00016892,2]
[361142614,1747303835793,-450.0,0.00016892,2]
[361142615,1747303835803,-456.0,0.00016892,2]
[361142616,1747303835814,-450.0,0.00016892,2]
[361142617,1747303835823,-450.0,0.00016892,2]
[361142618,1747303835833,-450.0,0.00016892,2]
[361142619,1747303835843,-450.0,0.00016892,2]
[361142620,1747303835854,-450.0,0.00016892,2]
[361142621,1747303835864,-477.1,0.00016892,2]
[361142622,1747303835873,-501.0,0.00016892,2]
[361142623,1747303835882,-450.0,0.00016892,2]
[361142624,1747303835891,-325.5498773,0.00016892,2]
[361142625,1747303835901,-450.0,0.00016892,2]
[361142626,1747303835911,-400.0,0.00016892,2]
[361142627,1747303835920,-450.0,0.00016892,2]
[361142628,1747303835930,-573.24934284,0.00016892,2]
[361142629,1747303835939,-450.0,0.00016892,2]
[361142630,1747303835949,-450.0,0.00016892,2]
[361142631,1747303836049,-450.0,0.00016892,2]
[361142632,1747303836060,-450.0,0.00016892,2]
[361142633,1747303836071,-450.0,0.00016892,2]
[361142634,1747303836081,-450.0,0.00016892,2]
[361142635,1747303836091,-450.0,0.00016892,2]
[361142636,1747303836101,-2566.64,0.00016892,2]
[361142637,1747303836111,-400.0,0.00016892,2]
[361142638,1747303836120,-450.0,0.00016892,2]
[361142639,1747303836129,-450.0,0.00016892,2]
[361142640,1747303836139,-450.0,0.00016892,2]
[361142641,1747303836148,-450.0,0.00016892,2]
[361142642,1747303836157,-588.25,0.00016892,2]
[361142643,1747303836167,-450.0,0.00016892,2]
[361142644,1747303836178,-450.0,0.00016892,2]
[361142645,1747303836187,-419.09615091,0.00016892,2]
[361142646,1747303836197,-450.0,0.00016892,2]
[361142647,1747303836207,-450.0,0.00016892,2]
[361142648,1747303836217,-450.0,0.00016892,2]
[361142649,1747303836227,-450.0,0.00016892,2]
[361142650,1747303836236,-450.0,0.00016892,2]
[361142651,1747303836246,-450.0,0.00016892,2]
[361142652,1747303836255,-450.0,0.00016892,2]
[361142653,1747303836264,-450.0,0.00016892,2]
[361142654,1747303836273,-450.0,0.00016892,2]
[361142655,1747303836282,-450.0,0.00016892,2]
[361142656,1747303836292,-400.0,0.00016892,2]
[361142657,1747303836301,-450.0,0.00016892,2]
[361142658,1747303836310,-450.0,0.00016892,2]
[361142659,1747303836319,-554.59113616,0.00016892,2]
[361142660,1747303836328,-388.7769399,0.00016892,2]
[361142661,1747303836338,-450.0,0.00016892,2]
[361142662,1747303836347,-351.28736625,0.00016892,2]
[361142663,1747303836357,-450.0,0.00016892,2]
[361142664,1747303836366,-352.89878652,0.00016892,2]
[361142665,1747303836375,-450.0,0.00016892,2]
[361142666,1747303836385,-450.0,0.00016892,2]
[361142667,1747303836394,-450.0,0.00016892,2]
[361142668,1747303836403,-450.0,0.00016892,2]
[361142669,1747303836412,-352.01378937,0.00016892,2]
[361142670,1747303836422,-450.0,0.00016892,2]
[361142671,1747303836432,-450.0,0.00016892,2]
[361142672,1747303836441,-450.0,0.00016892,2]
[361142673,1747303836451,-351.473301,0.00016892,2]
[361142674,1747303836460,-583.12,0.00016892,2]
[361142675,1747303836468,-583.12,0.00016892,2]
[361142676,1747303836476,-450.0,0.00016892,2]
[361142677,1747303836486,-357.34241287,0.00016892,2]
[361142678,1747303836495,-446.09831771,0.00016892,2]
[361142679,1747303836505,-484.32,0.00016892,2]
[361142680,1747303836515,-450.0,0.00016892,2]
[361142681,1747303836525,-351.05044979,0.00016892,2]
[361142682,1747303836535,-450.0,0.00016892,2]
[361142683,1747303836544,-450.0,0.00016892,2]
[361142684,1747303836554,-413.12674276,0.00016892,2]
[361142685,1747303836564,-450.0,0.00016892,2]
[361142686,1747303836574,-450.0,0.00016892,2]
[361142687,1747303836584,-450.0,0.00016892,2]
[361142688,1747303836593,-450.0,0.00016892,2]
[361142689,1747303836602,-479.37728458,0.00016892,2]
[361142690,1747303836612,-450.0,0.00016892,2]
[361142691,1747303836621,-450.0,0.00016892,2]
[361142692,1747303836631,-4052.80270173,0.00016893,3]
[361142693,1747303836640,-386.25398111,0.00016893,2]
[361142694,1747303836649,-299.10170147,0.00016893,2]
[361142695,1747303836659,-450.0,0.00016893,2]
[361142696,1747303836668,-450.0,0.00016893,2]
[361142697,1747303836677,-357.01411133,0.00016893,2]
[361142698,1747303836687,-450.0,0.00016893,2]
[361142699,1747303836696,-450.0,0.00016893,2]
[361142700,1747303836706,-1246.2,0.00016893,2]
[361142701,1747303836724,-1246.2,0.00016893,2]
[361142702,1747303836734,-1246.2,0.00016893,2]
[361142703,1747303836743,-1246.2,0.00016893,2]
[361142704,1747303836753,-846.01,0.00016893,2]
[361142705,1747303836764,-846.01,0.00016893,2]
[361142706,1747303836774,-846.01,0.00016893,2]
[361142707,1747303836783,-846.01,0.00016893,2]
[361142708,1747303836793,-1214.83,0.00016893,2]
[361142709,1747303836802,-450.0,0.00016893,2]
[361142710,1747303836812,-1685.95,0.00016893,2]
[361142711,1747303836821,-450.0,0.00016893,2]
[361142712,1747303836830,-450.0,0.00016893,2]
[361142713,1747303836839,-450.0,0.00016893,2]
[361142714,1747303836849,-450.0,0.00016893,2]
[361142715,1747303836858,-450.0,0.00016893,2]
[361142716,1747303836868,-450.0,0.00016893,2]
[361142717,1747303836877,-2059.65,0.00016893,2]
[361142718,1747303836886,-523.83,0.00016893,2]
[361142719,1747303836904,-450.0,0.00016893,2]
[361142720,1747303836920,-933.06,0.00016893,2]
[361142721,1747303836933,-450.0,0.00016893,2]
[361142722,1747303836948,-583.12,0.00016893,2]
[361142723,1747303836962,-583.12,0.00016893,2]
[361142724,1747303836977,-583.12,0.00016893,2]
[361142725,1747303836991,-583.12,0.00016893,2]
[361142726,1747303837007,-681.23850977,0.00016894,2]
[361142727,1747303837020,-400.0,0.00016894,2]
[361142728,1747303837033,-450.0,0.00016894,2]
[361142729,1747303837047,-450.0,0.00016894,2]
[361142730,1747303837062,-450.0,0.00016894,2]
[361142731,1747303837076,-450.0,0.00016894,2]
[361142732,1747303837088,-254.41295235,0.00016894,2]
[361142733,1747303837101,-450.0,0.00016894,2]
[361142734,1747303837113,-450.0,0.00016894,2]
[361142735,1747303837127,-450.0,0.00016894,2]
[361142736,1747303837141,-502.96,0.00016894,2]
[361142737,1747303837157,-195.16317655,0.00016894,2]
[361142738,1747303837172,-450.0,0.00016894,2]
[361142739,1747303837185,-450.0,0.00016894,2]
[361142740,1747303837196,-450.0,0.00016894,2]
[361142741,1747303837207,-453.47,0.00016894,2]
[361142742,1747303837226,-1246.2,0.00016894,2]
[361142743,1747303837241,-1246.2,0.00016894,2]
[361142744,1747303837253,-1246.2,0.00016894,2]
[361142745,1747303837266,-1246.2,0.00016894,2]
[361142746,1747303837279,-450.0,0.00016894,2]
[361142747,1747303837291,-450.0,0.00016894,2]
[361142748,1747303837303,-450.0,0.00016894,2]
[361142749,1747303837315,-450.0,0.00016894,2]
[361142750,1747303837327,-450.0,0.00016894,2]
[361142751,1747303837340,-450.0,0.00016894,2]
[361142752,1747303837353,-403.64829231,0.00016894,2]
[361142753,1747303837365,-450.0,0.00016894,2]
[361142754,1747303837378,-450.0,0.00016894,2]
[361142755,1747303837391,-450.0,0.00016894,2]
[361142756,1747303837405,-450.0,0.00016894,2]
[361142757,1747303837416,-450.0,0.00016894,2]
[361142758,1747303837428,-402.91643551,0.00016894,2]
[361142759,1747303837441,-450.0,0.00016894,2]
[361142760,1747303837454,-450.0,0.00016894,2]
[361142761,1747303837466,-450.0,0.00016894,2]
[361142762,1747303837479,-450.0,0.00016894,2]
[361142763,1747303837491,-450.0,0.00016894,2]
[361142765,1747303837505,-450.0,0.00016894,2]
[361142766,1747303837517,-450.0,0.00016894,2]
[361142767,1747303837529,-450.0,0.00016894,2]
[361142768,1747303837542,-846.01,0.00016894,2]
[361142769,1747303837554,-846.01,0.00016894,2]
[361142770,1747303837566,-846.01,0.00016894,2]
[361142771,1747303837578,-846.01,0.00016894,2]
[361142772,1747303837591,-450.0,0.00016894,2]
[361142773,1747303837603,-450.0,0.00016894,2]
[361142774,1747303837615,-450.0,0.00016894,2]
[361142775,1747303837627,-450.0,0.00016894,2]
[361142776,1747303837640,-450.0,0.00016894,2]
[361142777,1747303837652,-450.0,0.00016894,2]
[361142779,1747303837664,-450.0,0.00016894,2]
[361142781,1747303837677,-450.0,0.00016894,2]
[361142783,1747303837688,-450.0,0.00016894,2]
[361142786,1747303837700,-474.54454497,0.00016894,2]
[361142788,1747303837713,-450.0,0.00016894,2]
[361142790,1747303837730,-450.0,0.00016894,2]
[361142793,1747303837742,-488.98912428,0.00016894,2]
[361142795,1747303837754,-450.0,0.00016894,2]
[361142797,1747303837767,-450.0,0.00016894,2]
[361142799,1747303837781,-450.0,0.00016894,2]
[361142801,1747303837792,-450.0,0.00016894,2]
[361142803,1747303837805,-450.0,0.00016894,2]
[361142806,1747303837817,-450.0,0.00016894,2]
[361142808,1747303837829,-450.0,0.00016894,2]
[361142810,1747303837841,-450.0,0.00016894,2]
[361142813,1747303837853,-450.0,0.00016894,2]
[361142815,1747303837865,-450.0,0.00016894,2]
[361142817,1747303837878,-450.0,0.00016894,2]
[361142820,1747303837890,-450.0,0.00016894,2]
[361142822,1747303837903,-400.65849172,0.00016894,2]
[361142824,1747303837915,-450.0,0.00016894,2]
[361142825,1747303837928,-450.0,0.00016894,2]
[361142826,1747303837940,-450.0,0.00016894,2]
[361142827,1747303837954,-450.0,0.00016894,2]
[361142829,1747303837966,-450.0,0.00016894,2]
[361142832,1747303837979,-450.0,0.00016894,2]
[361142834,1747303837989,-400.18144635,0.00016894,2]
[361142836,1747303837999,-450.0,0.00016894,2]
[361142840,1747303838124,-450.0,0.00016894,2]
[361142841,1747303838183,-450.0,0.00016894,2]
[361142842,1747303838192,-583.12,0.00016894,2]
[361142844,1747303838202,-583.12,0.00016894,2]
[361142846,1747303838211,-583.12,0.00016894,2]
[361142848,1747303838220,-583.12,0.00016894,2]
[361142850,1747303838229,-450.0,0.00016895,2]
[361142852,1747303838239,-355.37416722,0.00016895,2]
[361142854,1747303838248,-1016.04,0.00016895,2]
[361142856,1747303838257,-1016.04,0.00016895,2]
[361142858,1747303838265,-450.0,0.00016895,2]
[361142860,1747303838274,-400.0,0.00016895,2]
[361142862,1747303838282,-405.22934624,0.00016895,2]
[361142864,1747303838291,-450.0,0.00016895,2]
[361142866,1747303838300,-450.0,0.00016895,2]
[361142868,1747303838310,-402.74335367,0.00016895,2]
[361142870,1747303838319,-450.0,0.00016895,2]
[361142872,1747303838328,-405.93025187,0.00016895,2]
[361142874,1747303838337,-431.76375969,0.00016895,2]
[361142876,1747303838346,-274.09066979,0.00016895,2]
[361142878,1747303838356,-400.0,0.00016895,2]
[361142880,1747303838366,-450.0,0.00016895,2]
[361142882,1747303838375,-403.81462006,0.00016895,2]
[361142884,1747303838386,-450.0,0.00016895,2]
[361142886,1747303838399,-503.93904324,0.00016895,2]
[361142888,1747303838408,-450.0,0.00016895,2]
[361142890,1747303838418,-450.0,0.00016895,2]
[361142893,1747303838428,-1004.92510082,0.00016895,2]
[361142894,1747303838439,-405.27227523,0.00016895,2]
[361142896,1747303838450,-450.0,0.00016895,2]
[361142898,1747303838464,-450.0,0.00016895,2]
[361142900,1747303838473,-508.49341999,0.00016895,2]
[361142902,1747303838483,-400.99409716,0.00016895,2]
[361142904,1747303838491,-400.19386807,0.00016895,2]
[361142906,1747303838501,-450.0,0.00016895,2]
[361142908,1747303838511,-403.97107739,0.00016895,2]
[361142910,1747303838521,-450.0,0.00016895,2]
[361142911,1747303838530,-450.0,0.00016895,2]
[361142913,1747303838539,-450.0,0.00016895,2]
[361142915,1747303838548,-450.0,0.00016895,2]
[361142917,1747303838560,-450.0,0.00016895,2]
[361142919,1747303838576,-450.0,0.00016895,2]
[361142922,1747303838588,-450.0,0.00016895,2]
[361142924,1747303838598,-406.24177746,0.00016895,2]
[361142926,1747303838609,-450.0,0.00016895,2]
[361142927,1747303838618,-400.85571196,0.00016895,2]
[361142930,1747303838630,-450.0,0.00016895,2]
[361142931,1747303838640,-403.65334259,0.00016895,2]
[361142933,1747303838649,-455.74224175,0.00016895,2]
[361142935,1747303838659,-230.04697997,0.00016895,2]
[361142937,1747303838668,-450.0,0.00016895,2]
[361142939,1747303838677,-401.18430818,0.00016895,2]
[361142941,1747303838686,-450.0,0.00016895,2]
[361142943,1747303838695,-450.0,0.00016895,2]
[361142945,1747303838704,-358.0,0.00016895,2]
[361142947,1747303838714,-450.0,0.00016895,2]
[361142949,1747303838727,-450.0,0.00016895,2]
[361142951,1747303838736,-450.0,0.00016895,2]
[361142953,1747303838745,-450.0,0.00016895,2]
[361142955,1747303838755,-450.0,0.00016895,2]
[361142957,1747303838765,-450.0,0.00016895,2]
[361142959,1747303838774,-450.0,0.00016895,2]
[361142960,1747303838783,-450.0,0.00016895,2]
[361142961,1747303838792,-450.0,0.00016895,2]
[361142962,1747303838802,-450.0,0.00016895,2]
[361142963,1747303838811,-450.0,0.00016895,2]
[361142964,1747303838820,-310.54866125,0.00016895,2]
[361142965,1747303838829,-450.0,0.00016895,2]
[361142966,1747303838838,-450.0,0.00016895,2]
[361142967,1747303838847,-560.00217005,0.00016895,2]
[361142968,1747303838856,-450.0,0.00016895,2]
[361142969,1747303838866,-403.86191112,0.00016895,2]
[361142970,1747303838874,-450.0,0.00016895,2]
[361142971,1747303838883,-450.0,0.00016895,2]
[361142972,1747303838892,-450.0,0.00016895,2]
[361142973,1747303838901,-450.0,0.00016895,2]
[361142974,1747303838910,-306.89363536,0.00016895,2]
[361142975,1747303838919,-401.48640978,0.00016895,2]
[361142976,1747303838928,-450.0,0.00016895,2]
[361142977,1747303838937,-332.2447897,0.00016895,2]
[361142978,1747303838946,-450.0,0.00016895,2]
[361142979,1747303838955,-538.8900638,0.00016895,2]
[361142980,1747303838965,-450.0,0.00016895,2]
[361142981,1747303838974,-450.0,0.00016895,2]
[361142982,1747303838983,-400.0,0.00016895,2]
[361142983,1747303838992,-299.2059426,0.00016895,2]
[361142984,1747303839003,-440.8026436,0.00016895,2]
[361142985,1747303839012,-450.0,0.00016895,2]
[361142986,1747303839021,-401.27204871,0.00016895,2]
[361142987,1747303839030,-450.0,0.00016895,2]
[361142988,1747303839040,-450.0,0.00016895,2]
[361142989,1747303839049,-450.0,0.00016895,2]
[361142990,1747303839059,-450.0,0.00016895,2]
[361142991,1747303839070,-450.0,0.00016895,2]
[361142993,1747303839081,-450.0,0.00016895,2]
[361142995,1747303839090,-450.0,0.00016895,2]
[361142997,1747303839099,-405.96307431,0.00016895,2]
[361142999,1747303839109,-507.87807916,0.00016895,2]
[361143001,1747303839118,-400.99983387,0.00016895,2]
[361143003,1747303839127,-500.0,0.00016895,2]
[361143005,1747303839137,-450.0,0.00016895,2]
[361143007,1747303839146,-450.0,0.00016895,2]
[361143009,1747303839155,-450.0,0.00016895,2]
[361143011,1747303839164,-406.84331052,0.00016895,2]
[361143013,1747303839174,-450.0,0.00016895,2]
[361143015,1747303839183,-450.0,0.00016895,2]
[361143017,1747303839192,-401.25400043,0.00016895,2]
[361143019,1747303839201,-401.52965941,0.00016895,2]
[361143021,1747303839211,-221.90167682,0.00016895,2]
[361143023,1747303839220,-450.0,0.00016895,2]
[361143025,1747303839230,-450.0,0.00016895,2]
[361143027,1747303839240,-450.0,0.00016895,2]
[361143029,1747303839249,-404.05764315,0.00016895,2]
[361143031,1747303839258,-450.0,0.00016895,2]
[361143033,1747303839268,-402.1180284,0.00016895,2]
[361143035,1747303839277,-450.0,0.00016895,2]
[361143037,1747303839286,-450.0,0.00016895,2]
[361143039,1747303839295,-450.0,0.00016895,2]
[361143041,1747303839306,-450.0,0.00016895,2]
[361143043,1747303839315,-450.0,0.00016895,2]
[361143045,1747303839324,-450.0,0.00016895,2]
[361143047,1747303839333,-450.0,0.00016895,2]
[361143049,1747303839342,-450.0,0.00016895,2]
[361143051,1747303839352,-401.55428212,0.00016895,2]
[361143053,1747303839363,-400.0,0.00016895,2]
[361143055,1747303839372,-450.0,0.00016895,2]
[361143057,1747303839381,-450.0,0.00016895,2]
[361143059,1747303839390,-450.0,0.00016895,2]
[361143061,1747303839399,-450.0,0.00016895,2]
[361143063,1747303839409,-450.0,0.00016895,2]
[361143065,1747303839419,-450.0,0.00016895,2]
[361143067,1747303839428,-450.0,0.00016895,2]
[361143069,1747303839438,-450.0,0.00016895,2]
[361143071,1747303839447,-450.0,0.00016895,2]
[361143073,1747303839457,-327.42765405,0.00016895,2]
[361143075,1747303839468,-450.0,0.00016895,2]
[361143077,1747303839477,-403.60744697,0.00016895,2]
[361143079,1747303839486,-450.0,0.00016895,2]
[361143081,1747303839495,-450.0,0.00016895,2]
[361143083,1747303839505,-450.0,0.00016895,2]
[361143085,1747303839514,-400.0,0.00016895,2]
[361143087,1747303839524,-400.0,0.00016895,2]
[361143089,1747303839534,-450.0,0.00016895,2]
[361143091,1747303839545,-402.55,0.00016895,2]
[361143093,1747303839554,-400.0,0.00016895,2]
[361143095,1747303839563,-402.18142468,0.00016895,2]
[361143097,1747303839572,-404.58138656,0.00016895,2]
[361143099,1747303839583,-1246.2,0.00016895,2]
[361143101,1747303839592,-1246.2,0.00016895,2]
[361143103,1747303839603,-846.01,0.00016895,2]
[361143105,1747303839613,-846.01,0.00016895,2]
[361143107,1747303839623,-583.12,0.00016895,2]
[361143109,1747303839632,-583.12,0.00016895,2]
[361143111,1747303839641,-1016.04,0.00016896,2]
[361143113,1747303839650,-1016.04,0.00016896,2]
[361143115,1747303839660,-1246.2,0.00016896,2]
[361143117,1747303839670,-846.01,0.00016896,2]
[361143119,1747303839680,-583.12,0.00016896,2]
[361143121,1747303839689,-583.12,0.00016896,2]
[361143123,1747303839698,-1016.04,0.00016897,2]
[361143125,1747303839707,-1016.04,0.00016897,2]
[361143127,1747303839718,-1016.04,0.00016897,2]
[361143128,1747303839730,-1016.04,0.00016897,2]
[361143130,1747303839739,-1016.04,0.00016897,2]
[361143132,1747303839749,-1016.04,0.00016897,2]
[361143134,1747303839758,-1016.04,0.00016897,2]
[361143137,1747303839769,-1016.04,0.00016897,2]
[361143138,1747303839778,-1016.04,0.00016897,2]
[361143140,1747303839788,-1016.04,0.00016897,2]
[361143142,1747303839800,-1016.04,0.00016897,2]
[361143144,1747303839811,-1246.2,0.00016897,2]
[361143146,1747303839821,-1246.2,0.00016897,2]
[361143148,1747303839831,-846.01,0.00016897,2]
[361143150,1747303839841,-846.01,0.00016897,2]
[361143152,1747303839850,-450.0,0.00016951,2]
[361143154,1747303839860,-450.0,0.00016951,2]
[361143156,1747303839869,-450.0,0.00016951,2]
[361143158,1747303839879,-450.0,0.00016951,2]
[361143160,1747303839888,-450.0,0.00016951,2]
[361143162,1747303839897,-450.0,0.00016951,2]
[361143164,1747303839906,-450.0,0.00016951,2]
[361143166,1747303839916,-450.0,0.00016951,2]
[361143168,1747303839926,-583.98,0.00016951,2]
[361143170,1747303839936,-450.0,0.00016951,2]
[361143172,1747303839945,-756.09,0.00016951,2]
[361143174,1747303839955,-450.0,0.00016951,2]
[361143176,1747303839965,-2058.18,0.00016951,2]
[361143178,1747303839975,-450.0,0.00016951,2]
[361143180,1747303839984,-554.52,0.00016951,2]
[361143182,1747303839993,-450.0,0.00016951,2]
[361143184,1747303840002,-450.0,0.00016951,2]
[361143186,1747303840012,-450.0,0.00016951,2]
[361143188,1747303840021,-210.1673188,0.00016951,2]
[361143190,1747303840030,-450.0,0.00016951,2]
[361143192,1747303840039,-450.0,0.00016951,2]
[361143194,1747303840049,-450.0,0.00016951,2]
[361143196,1747303840058,-450.0,0.00016951,2]
[361143198,1747303840067,-450.0,0.00016951,2]
[361143200,1747303840076,-350.0,0.00016951,2]
[361143202,1747303840086,-450.0,0.00016951,2]
[361143204,1747303840095,-2509.81,0.00016951,2]
[361143206,1747303840104,-450.0,0.00016951,2]
[361143208,1747303840114,-450.0,0.00016951,2]
[361143210,1747303840123,-450.0,0.00016951,2]
[361143212,1747303840132,-342.88019991,0.00016951,2]
[361143214,1747303840142,-278.10447841,0.00016951,2]
[361143216,1747303840151,-250.9818509,0.00016951,2]
[361143218,1747303840160,-450.0,0.00016952,2]
[361143220,1747303840171,-250.0,0.00016952,2]
[361143221,1747303840180,-450.0,0.00016952,2]
[361143223,1747303840189,-450.0,0.00016952,2]
[361143225,1747303840199,-176.77547368,0.00016952,2]
[361143227,1747303840209,-453.8643203,0.00016952,2]
[361143229,1747303840223,-450.0,0.00016952,2]
[361143231,1747303840232,-1098.48,0.00016952,2]
[361143233,1747303840241,-6348.46,0.00016952,2]
[361143235,1747303840250,-1249.68,0.00016952,2]
[361143237,1747303840260,-450.0,0.00016952,2]
[361143239,1747303840270,-283.24437252,0.00016952,2]
[361143241,1747303840279,-450.0,0.00016952,2]
[361143243,1747303840288,-564.29754601,0.00016952,2]
[361143245,1747303840298,-450.0,0.00016952,2]
[361143247,1747303840307,-2409.61,0.00016952,2]
[361143249,1747303840317,-450.0,0.00016952,2]
[361143251,1747303840326,-4449.11,0.00016952,2]
[361143253,1747303840335,-969.74,0.00016952,2]
[361143255,1747303840344,-450.0,0.00016952,2]
[361143257,1747303840353,-603.18,0.00016952,2]
[361143259,1747303840363,-450.0,0.00016952,2]
[361143261,1747303840372,-492.34,0.00016952,2]
[361143263,1747303840381,-1683.33,0.00016952,2]
[361143265,1747303840390,-450.0,0.00016952,2]
[361143267,1747303840400,-450.0,0.00016952,2]
[361143269,1747303840409,-450.0,0.00016952,2]
[361143271,1747303840418,-450.0,0.00016952,2]
[361143273,1747303840427,-374.46287433,0.00016952,2]
[361143275,1747303840437,-612.18,0.00016952,2]
[361143277,1747303840447,-450.0,0.00016952,2]
[361143279,1747303840456,-450.0,0.00016952,2]
[361143281,1747303840467,-916.43,0.00016952,2]
[361143283,1747303840476,-450.0,0.00016952,2]
[361143285,1747303840485,-450.0,0.00016952,2]
[361143287,1747303840494,-748.82,0.00016952,2]
[361143289,1747303840503,-350.0,0.00016952,2]
[361143291,1747303840512,-351.81723968,0.00016952,2]
[361143293,1747303840522,-450.0,0.00016952,2]
[361143295,1747303840531,-450.0,0.00016952,2]
[361143297,1747303840540,-450.0,0.00016952,2]
[361143299,1747303840550,-354.13807009,0.00016952,2]
[361143301,1747303840559,-450.0,0.00016952,2]
[361143303,1747303840568,-350.0,0.00016952,2]
[361143316,1747303840682,-350.0,0.00016952,2]
[361143318,1747303840692,-450.0,0.00016952,2]
[361143320,1747303840701,-609.73,0.00016952,2]
[361143322,1747303840710,-728.96,0.00016952,2]
[361143324,1747303840723,-813.32,0.00016952,2]
[361143326,1747303840734,-350.0,0.00016952,2]
[361143328,1747303840744,-538.66,0.00016952,2]
[361143330,1747303840753,-583.12,0.00017028,2]